fUSD/lending_fUSD_20240516
["ID","MTS","AMOUNT","RATE_DAILY","PERIOD"]
[327130660,1715845873039,-500.0,0.00011472,2]
[327130661,1715845873047,-500.0,0.00011472,2]
[327130662,1715845873057,-1102.54,0.00011472,2]
[327130663,1715845873066,-500.0,0.00011472,2]
[327130664,1715845873077,-500.0,0.00011472,2]
[327130665,1715845873086,-1873.23,0.00011472,2]
[327130666,1715845873095,-500.0,0.00011472,2]
[327130667,1715845873104,-516.66607573,0.00011472,2]
[327130668,1715845873114,-500.0,0.00011472,2]
[327130669,1715845873123,-500.0,0.00011472,2]
[327130670,1715845873132,-500.0,0.00011472,2]
[327130671,1715845873141,-325.25581832,0.00011472,2]
[327130672,1715845873150,-511.86211386,0.00011472,2]
[327130673,1715845873159,-7913.77,0.00011472,2]
[327130674,1715845873169,-661.94,0.00011472,2]
[327130675,1715845873178,-797.35,0.00011472,2]
[327130676,1715845873187,-500.0,0.00011472,2]
[327130677,1715845873196,-500.0,0.00011472,2]
[327130678,1715845873206,-1025.09,0.00011472,2]
[327130679,1715845873215,-1717.87,0.00011472,2]
[327130680,1715845873224,-500.0,0.00011472,2]
[327130681,1715845873233,-500.0,0.00011472,2]
[327130682,1715845873242,-500.0,0.00011472,2]
[327130683,1715845873252,-500.0,0.00011472,2]
[327130684,1715845873261,-514.95859278,0.00011472,2]
[327130686,1715845873270,-500.0,0.00011472,2]
[327130687,1715845873280,-382.14041151,0.00011472,2]
[327130688,1715845873289,-500.0,0.00011472,2]
[327130689,1715845873298,-500.0,0.00011472,2]
[327130690,1715845873308,-611.67,0.00011472,2]
[327130691,1715845873318,-2725.83,0.00011472,2]
[327130692,1715845873328,-500.0,0.00011472,2]
[327130693,1715845873337,-500.0,0.00011472,2]
[327130694,1715845873346,-673.83,0.00011472,2]
[327130695,1715845873355,-500.0,0.00011472,2]
[327130696,1715845873365,-660.08,0.00011472,2]
[327130697,1715845873374,-707.3,0.00011472,2]
[327130698,1715845873384,-500.0,0.00011472,2]
[327130699,1715845873393,-500.0,0.00011472,2]
[327130700,1715845873402,-5914.7,0.00011472,2]
[327130701,1715845873413,-500.0,0.00011472,2]
[327130702,1715845873421,-2067.99,0.00011472,2]
[327130703,1715845873430,-5914.7,0.00011472,2]
[327130704,1715845873441,-245000.0,0.00011473,2]
[327130705,1715845873450,-466.3052,0.00011473,2]
[327130706,1715845873461,-151.0,0.00011473,2]
[327130707,1715845873470,-151.0,0.00011473,2]
[327130708,1715845873479,-151.0,0.00011473,2]
[327130709,1715845873488,-151.0,0.00011473,2]
[327130710,1715845873499,-151.0,0.00011473,2]
[327130711,1715845873510,-151.0,0.00011473,2]
[327130712,1715845873520,-151.0,0.00011473,2]
[327130713,1715845873531,-151.0,0.00011473,2]
[327130714,1715845873542,-151.0,0.00011473,2]
[327130715,1715845873552,-151.0,0.00011473,2]
[327130716,1715845873562,-151.0,0.00011473,2]
[327130717,1715845873572,-151.0,0.00011473,2]
[327130718,1715845873583,-151.0,0.00011473,2]
[327130719,1715845873592,-151.0,0.00011473,2]
[327130720,1715845873602,-229.286727,0.00011473,2]
[327130721,1715845873611,-229.286727,0.00011473,2]
[327130722,1715845873621,-156.014983,0.00011473,2]
[327130723,1715845873630,-545.87678,0.00011473,2]
[327130724,1715845873639,-151.0,0.00011473,2]
[327130725,1715845873649,-545.87678,0.00011473,2]
[327130726,1715845873658,-151.0,0.00011473,2]
[327130727,1715845873668,-151.0,0.00011473,2]
[327130728,1715845873678,-185.95138286,0.00011475,2]
[327130729,1715845873687,-1692.19422185,0.00011506,2]
[327130730,1715845873696,-4851.98429022,0.0001152,2]
[327130731,1715845873705,-6430.81441793,0.00011536,2]
[327130732,1715845874154,-571.01966468,0.00011536,2]
[327130733,1715845874234,-500.0,0.00011199,2]
[327130734,1715845874244,-2923.6849336,0.00011536,2]
[327130735,1715845874253,-449.89092221,0.00011536,2]
[327130736,1715845874263,-2089.9605682,0.00011539,2]
[327130737,1715845874272,-2698.70886794,0.00011539,2]
[327130738,1715845874282,-282.94266462,0.00011556,2]
[327130739,1715845874292,-151.0,0.00011561,2]
[327130740,1715845874302,-151.0,0.00011561,2]
[327130741,1715845874314,-157.757713,0.00011561,2]
[327130742,1715845874324,-151.0,0.00011561,2]
[327130743,1715845874334,-361.864115,0.00011561,2]
[327130744,1715845874343,-361.864115,0.00011561,2]
[327130745,1715845874353,-236.944684,0.00011561,2]
[327130746,1715845874363,-236.944684,0.00011561,2]
[327130747,1715845874373,-194.010334,0.00011561,2]
[327130748,1715845874383,-194.010334,0.00011561,2]
[327130749,1715845874392,-2987.97906522,0.00011562,2]
[327130750,1715845874411,-1025.8237163,0.00011562,2]
[327130751,1715845874423,-578.26501555,0.00011562,2]
[327130752,1715845874433,-286.8314481,0.00011562,2]
[327130753,1715845874442,-500.0,0.0001157,2]
[327130754,1715845874452,-514.19,0.0001157,2]
[327130755,1715845874461,-20.36812976,0.0001157,2]
[327130756,1715845874476,-897.87187024,0.0001157,2]
[327130757,1715845874486,-500.0,0.0001157,2]
[327130758,1715845874497,-2681.51,0.0001157,2]
[327130759,1715845874508,-571.1,0.0001157,2]
[327130760,1715845874518,-545.93,0.0001157,2]
[327130761,1715845874530,-1319.7,0.0001157,2]
[327130762,1715845874540,-500.0,0.0001157,2]
[327130763,1715845874550,-773.8,0.0001157,2]
[327130764,1715845874559,-500.0,0.0001157,2]
[327130765,1715845874569,-1025.09,0.0001157,2]
[327130766,1715845874580,-500.0,0.0001157,2]
[327130767,1715845874589,-673.83,0.0001157,2]
[327130768,1715845874599,-707.3,0.0001157,2]
[327130769,1715845874609,-500.0,0.00011571,2]
[327130770,1715845874619,-500.0,0.00011571,2]
[327130771,1715845874630,-500.0,0.00011571,2]
[327130772,1715845874639,-500.0,0.00011571,2]
[327130773,1715845874648,-500.0,0.00011571,2]
[327130774,1715845874657,-500.0,0.00011571,2]
[327130775,1715845874667,-500.0,0.00011571,2]
[327130776,1715845874677,-500.0,0.00011571,2]
[327130777,1715845874686,-500.0,0.00011571,2]
[327130778,1715845874696,-500.0,0.00011571,2]
[327130779,1715845874705,-500.0,0.00011571,2]
[327130780,1715845874714,-500.0,0.00011571,2]
[327130781,1715845874724,-614.08,0.00011571,2]
[327130782,1715845874733,-614.08,0.00011571,2]
[327130783,1715845874742,-500.0,0.00011571,2]
[327130784,1715845874751,-500.0,0.00011571,2]
[327130785,1715845874760,-500.0,0.00011571,2]
[327130786,1715845874769,-500.0,0.00011571,2]
[327130787,1715845874779,-500.0,0.00011571,2]
[327130788,1715845874788,-793.58,0.00011571,2]
[327130789,1715845874800,-793.58,0.00011571,2]
[327130790,1715845874809,-500.0,0.00011571,2]
[327130791,1715845874818,-500.0,0.00011571,2]
[327130792,1715845874827,-500.0,0.00011571,2]
[327130793,1715845874836,-500.0,0.00011571,2]
[327130794,1715845874845,-500.0,0.00011571,2]
[327130795,1715845874854,-500.0,0.00011571,2]
[327130796,1715845874863,-500.0,0.00011571,2]
[327130797,1715845874872,-500.0,0.00011571,2]
[327130798,1715845874881,-500.0,0.00011571,2]
[327130799,1715845874889,-500.0,0.00011571,2]
[327130800,1715845874898,-588.2,0.00011571,2]
[327130801,1715845874907,-588.2,0.00011571,2]
[327130802,1715845874918,-523.32,0.00011571,2]
[327130803,1715845874927,-500.0,0.00011571,2]
[327130804,1715845874936,-500.0,0.00011571,2]
[327130805,1715845874949,-500.0,0.00011571,2]
[327130806,1715845874960,-150.0,0.00011571,2]
[327130807,1715845874969,-500.0,0.00011571,2]
[327130808,1715845874978,-500.0,0.00011571,2]
[327130809,1715845874989,-500.0,0.00011571,2]
[327130810,1715845874998,-500.0,0.00011571,2]
[327130811,1715845875008,-500.0,0.00011571,2]
[327130812,1715845875018,-500.0,0.00011571,2]
[327130813,1715845875029,-318.81424618,0.00011571,2]
[327130814,1715845875039,-500.0,0.00011571,2]
[327130815,1715845875049,-500.0,0.00011571,2]
[327130816,1715845875059,-511.64,0.00011571,2]
[327130817,1715845875069,-511.64,0.00011571,2]
[327130818,1715845875079,-500.0,0.00011571,2]
[327130819,1715845875089,-500.0,0.00011571,2]
[327130820,1715845875098,-500.0,0.00011571,2]
[327130821,1715845875107,-500.0,0.00011571,2]
[327130822,1715845875116,-500.0,0.00011571,2]
[327130823,1715845875126,-6532.31,0.00011571,2]
[327130824,1715845875135,-6532.31,0.00011571,2]
[327130825,1715845875145,-6532.31,0.00011571,2]
[327130826,1715845875154,-500.0,0.00011571,2]
[327130827,1715845875164,-500.0,0.00011571,2]
[327130828,1715845875173,-500.0,0.00011571,2]
[327130829,1715845875182,-500.0,0.00011571,2]
[327130830,1715845875191,-2738.01,0.00011571,2]
[327130831,1715845875200,-3608.27,0.00011571,2]
[327130832,1715845875209,-2738.01,0.00011571,2]
[327130833,1715845875218,-514.19,0.00011571,2]
[327130834,1715845875227,-678.1,0.00011571,2]
[327130835,1715845875236,-514.19,0.00011571,2]
[327130836,1715845875246,-514.19,0.00011571,2]
[327130837,1715845875255,-500.0,0.00011571,2]
[327130838,1715845875264,-500.0,0.00011571,2]
[327130839,1715845875274,-500.0,0.00011571,2]
[327130840,1715845875283,-918.24,0.00011571,2]
[327130841,1715845875477,-918.24,0.00011571,2]
[327130842,1715845875488,-918.24,0.00011571,2]
[327130843,1715845875498,-500.0,0.00011571,2]
[327130844,1715845875508,-500.0,0.00011571,2]
[327130845,1715845875519,-166.42530382,0.00011571,2]
[327130846,1715845875530,-500.0,0.00011571,2]
[327130847,1715845875541,-576.29,0.00011571,2]
[327130848,1715845875553,-500.0,0.00011571,2]
[327130849,1715845875563,-500.0,0.00011571,2]
[327130850,1715845875573,-500.0,0.00011571,2]
[327130851,1715845875582,-500.0,0.00011571,2]
[327130852,1715845875591,-174.98213806,0.00011571,2]
[327130853,1715845875600,-678.88,0.00011571,2]
[327130854,1715845875609,-579.88,0.00011571,2]
[327130855,1715845875618,-500.0,0.00011571,2]
[327130856,1715845875630,-500.0,0.00011571,2]
[327130857,1715845875639,-500.0,0.00011571,2]
[327130858,1715845875648,-500.0,0.00011571,2]
[327130859,1715845875658,-500.0,0.00011571,2]
[327130860,1715845875667,-1806.07,0.00011571,2]
[327130861,1715845875676,-677.67,0.00011571,2]
[327130862,1715845875685,-591.29,0.00011571,2]
[327130863,1715845875694,-500.0,0.00011571,2]
[327130864,1715845875703,-591.29,0.00011571,2]
[327130865,1715845875711,-591.29,0.00011571,2]
[327130866,1715845875721,-500.0,0.00011571,2]
[327130867,1715845875730,-2681.51,0.00011571,2]
[327130868,1715845875739,-2681.51,0.00011571,2]
[327130869,1715845875748,-2681.51,0.00011571,2]
[327130870,1715845875757,-516.43,0.00011571,2]
[327130871,1715845875766,-500.0,0.00011571,2]
[327130872,1715845875775,-314.79755269,0.00011571,2]
[327130873,1715845875784,-500.0,0.00011571,2]
[327130874,1715845875793,-752.56,0.00011571,2]
[327130875,1715845875801,-500.47,0.00011571,2]
[327130876,1715845875811,-500.47,0.00011571,2]
[327130877,1715845875819,-500.47,0.00011571,2]
[327130878,1715845875828,-7315.26,0.00011571,2]
[327130879,1715845875838,-571.1,0.00011571,2]
[327130880,1715845875847,-571.1,0.00011571,2]
[327130881,1715845875856,-571.1,0.00011571,2]
[327130882,1715845875864,-968.09,0.00011571,2]
[327130883,1715845875873,-841.0,0.00011571,2]
[327130884,1715845875882,-841.0,0.00011571,2]
[327130885,1715845875891,-531.0,0.00011571,2]
[327130886,1715845875900,-531.0,0.00011571,2]
[327130887,1715845875909,-531.0,0.00011571,2]
[327130888,1715845875918,-736.45,0.00011571,2]
[327130889,1715845875927,-531.0,0.00011571,2]
[327130890,1715845875936,-4907.78,0.00011571,2]
[327130891,1715845875949,-500.0,0.00011571,2]
[327130892,1715845875962,-500.0,0.00011571,2]
[327130893,1715845875971,-500.0,0.00011571,2]
[327130894,1715845875981,-500.0,0.00011571,2]
[327130895,1715845875991,-500.0,0.00011571,2]
[327130896,1715845876001,-500.0,0.00011571,2]
[327130897,1715845876010,-155.57731168,0.00011571,2]
[327130898,1715845876020,-858.13,0.00011571,2]
[327130899,1715845876030,-858.13,0.00011571,2]
[327130900,1715845876040,-858.13,0.00011571,2]
[327130901,1715845876050,-500.0,0.00011571,2]
[327130902,1715845876059,-669.88,0.00011571,2]
[327130903,1715845876069,-545.93,0.00011571,2]
[327130904,1715845876078,-545.93,0.00011571,2]
[327130905,1715845876088,-545.93,0.00011571,2]
[327130906,1715845876097,-2302.3,0.00011571,2]
[327130907,1715845876107,-500.0,0.00011571,2]
[327130908,1715845876116,-500.0,0.00011571,2]
[327130909,1715845876126,-937.61,0.00011571,2]
[327130910,1715845876136,-500.0,0.00011571,2]
[327130911,1715845876145,-834.1,0.00011571,2]
[327130912,1715845876155,-500.0,0.00011571,2]
[327130913,1715845876164,-694.77,0.00011571,2]
[327130914,1715845876175,-694.77,0.00011571,2]
[327130915,1715845876184,-694.77,0.00011571,2]
[327130916,1715845876193,-694.77,0.00011571,2]
[327130917,1715845876203,-8730.78,0.00011571,2]
[327130918,1715845876213,-500.0,0.00011571,2]
[327130919,1715845876223,-500.0,0.00011571,2]
[327130920,1715845876233,-500.0,0.00011571,2]
[327130921,1715845876243,-500.0,0.00011571,2]
[327130922,1715845876252,-1319.7,0.00011571,2]
[327130923,1715845876262,-1319.7,0.00011571,2]
[327130924,1715845876271,-1319.7,0.00011571,2]
[327130925,1715845876280,-621.06,0.00011571,2]
[327130926,1715845876290,-565.95651433,0.00011571,2]
[327130927,1715845876299,-500.0,0.00011571,2]
[327130928,1715845876309,-500.0,0.00011571,2]
[327130929,1715845876319,-522.77,0.00011571,2]
[327130930,1715845876329,-1724.48,0.00011571,2]
[327130931,1715845876339,-1724.48,0.00011571,2]
[327130932,1715845876348,-1724.48,0.00011571,2]
[327130933,1715845876358,-642.94,0.00011571,2]
[327130934,1715845876367,-1724.48,0.00011571,2]
[327130935,1715845876376,-500.0,0.00011571,2]
[327130936,1715845876386,-500.0,0.00011571,2]
[327130937,1715845876396,-500.0,0.00011571,2]
[327130938,1715845876405,-500.0,0.00011571,2]
[327130939,1715845876416,-500.0,0.00011571,2]
[327130940,1715845876425,-500.0,0.00011571,2]
[327130941,1715845876434,-500.0,0.00011571,2]
[327130942,1715845876444,-500.0,0.00011571,2]
[327130943,1715845876453,-500.0,0.00011571,2]
[327130944,1715845876463,-500.0,0.00011571,2]
[327130945,1715845876472,-1104.67,0.00011571,2]
[327130946,1715845876481,-775.45,0.00011571,2]
[327130947,1715845876490,-775.45,0.00011571,2]
[327130948,1715845876500,-883.82,0.00011571,2]
[327130949,1715845876509,-775.45,0.00011571,2]
[327130950,1715845876519,-500.0,0.00011571,2]
[327130951,1715845876527,-883.82,0.00011571,2]
[327130952,1715845876537,-500.0,0.00011571,2]
[327130953,1715845876546,-883.82,0.00011571,2]
[327130954,1715845876556,-500.0,0.00011571,2]
[327130955,1715845876565,-649.80230804,0.00011571,2]
[327130956,1715845876574,-500.0,0.00011571,2]
[327130957,1715845876583,-883.82,0.00011571,2]
[327130958,1715845876593,-500.0,0.00011571,2]
[327130959,1715845876602,-500.0,0.00011571,2]
[327130960,1715845876611,-500.0,0.00011571,2]
[327130961,1715845876620,-500.0,0.00011571,2]
[327130962,1715845876630,-500.0,0.00011571,2]
[327130963,1715845876639,-500.0,0.00011571,2]
[327130964,1715845876648,-500.0,0.00011571,2]
[327130965,1715845876658,-500.0,0.00011571,2]
[327130966,1715845876668,-888.68,0.00011571,2]
[327130967,1715845876677,-500.0,0.00011571,2]
[327130968,1715845876686,-888.68,0.00011571,2]
[327130969,1715845876695,-500.0,0.00011571,2]
[327130970,1715845876704,-888.68,0.00011571,2]
[327130971,1715845876713,-500.0,0.00011571,2]
[327130972,1715845876722,-888.68,0.00011571,2]
[327130973,1715845876732,-594.67,0.00011571,2]
[327130974,1715845876742,-900.38,0.00011571,2]
[327130975,1715845876751,-773.8,0.00011571,2]
[327130976,1715845876760,-773.8,0.00011571,2]
[327130977,1715845876770,-773.8,0.00011571,2]
[327130978,1715845876779,-850.47,0.00011571,2]
[327130979,1715845876790,-850.47,0.00011571,2]
[327130980,1715845876800,-850.47,0.00011571,2]
[327130981,1715845876812,-850.47,0.00011571,2]
[327130982,1715845876822,-500.0,0.00011571,2]
[327130983,1715845876833,-500.0,0.00011571,2]
[327130984,1715845876843,-500.0,0.00011571,2]
[327130985,1715845876853,-1615.84,0.00011571,2]
[327130986,1715845876863,-7297.58,0.00011571,2]
[327130987,1715845876875,-994.71,0.00011571,2]
[327130988,1715845876886,-500.0,0.00011571,2]
[327130989,1715845876897,-774.97,0.00011571,2]
[327130990,1715845876906,-500.0,0.00011571,2]
[327130991,1715845876915,-774.97,0.00011571,2]
[327130992,1715845876925,-500.0,0.00011571,2]
[327130993,1715845876935,-774.97,0.00011571,2]
[327130994,1715845876947,-500.0,0.00011571,2]
[327130995,1715845876960,-774.97,0.00011571,2]
[327130996,1715845876969,-500.0,0.00011571,2]
[327130997,1715845876979,-500.0,0.00011571,2]
[327130998,1715845876989,-1028.95,0.00011571,2]
[327130999,1715845876999,-500.0,0.00011571,2]
[327131000,1715845877009,-638.38,0.00011571,2]
[327131001,1715845877018,-950.37,0.00011571,2]
[327131002,1715845877027,-500.0,0.00011571,2]
[327131003,1715845877037,-500.0,0.00011571,2]
[327131004,1715845877046,-500.0,0.00011571,2]
[327131005,1715845877055,-500.8,0.00011571,2]
[327131006,1715845877064,-500.8,0.00011571,2]
[327131007,1715845877073,-500.8,0.00011571,2]
[327131008,1715845877083,-500.8,0.00011571,2]
[327131009,1715845877091,-500.0,0.00011571,2]
[327131010,1715845877101,-1163.53,0.00011571,2]
[327131011,1715845877110,-500.0,0.00011571,2]
[327131012,1715845877119,-570.11,0.00011571,2]
[327131013,1715845877128,-365.74209719,0.00011571,2]
[327131014,1715845877138,-658.95,0.00011571,2]
[327131015,1715845877150,-658.95,0.00011571,2]
[327131016,1715845877159,-658.95,0.00011571,2]
[327131017,1715845877169,-500.0,0.00011571,2]
[327131018,1715845877178,-500.0,0.00011571,2]
[327131019,1715845877188,-850.0,0.00011571,2]
[327131020,1715845877197,-1102.54,0.00011571,2]
[327131021,1715845877207,-1873.23,0.00011571,2]
[327131022,1715845877216,-1873.23,0.00011571,2]
[327131023,1715845877227,-1873.23,0.00011571,2]
[327131024,1715845877236,-500.0,0.00011571,2]
[327131025,1715845877246,-500.0,0.00011571,2]
[327131026,1715845877256,-500.0,0.00011571,2]
[327131027,1715845877266,-7913.77,0.00011571,2]
[327131028,1715845877275,-7913.77,0.00011571,2]
[327131029,1715845877285,-7913.77,0.00011571,2]
[327131030,1715845877294,-7913.77,0.00011571,2]
[327131031,1715845877304,-661.94,0.00011571,2]
[327131032,1715845877314,-661.94,0.00011571,2]
[327131033,1715845877324,-661.94,0.00011571,2]
[327131034,1715845877334,-797.35,0.00011571,2]
[327131035,1715845877344,-797.35,0.00011571,2]
[327131036,1715845877353,-1025.09,0.00011571,2]
[327131037,1715845877363,-1025.09,0.00011571,2]
[327131038,1715845877372,-1025.09,0.00011571,2]
[327131039,1715845877382,-1717.87,0.00011571,2]
[327131040,1715845877392,-500.0,0.00011571,2]
[327131041,1715845877401,-500.0,0.00011571,2]
[327131042,1715845877410,-500.0,0.00011571,2]
[327131043,1715845877421,-611.67,0.00011571,2]
[327131044,1715845877430,-2725.83,0.00011571,2]
[327131045,1715845877439,-2725.83,0.00011571,2]
[327131046,1715845877449,-2725.83,0.00011571,2]
[327131047,1715845877459,-673.83,0.00011571,2]
[327131048,1715845877468,-673.83,0.00011571,2]
[327131049,1715845877477,-500.0,0.00011571,2]
[327131050,1715845877488,-500.0,0.00011571,2]
[327131051,1715845877498,-660.08,0.00011571,2]
[327131052,1715845877507,-500.0,0.00011571,2]
[327131053,1715845877517,-660.08,0.00011571,2]
[327131054,1715845877526,-660.08,0.00011571,2]
[327131055,1715845877535,-660.08,0.00011571,2]
[327131056,1715845877546,-707.3,0.00011571,2]
[327131057,1715845877555,-707.3,0.00011571,2]
[327131058,1715845877564,-707.3,0.00011571,2]
[327131059,1715845877574,-2067.99,0.00011571,2]
[327131060,1715845877583,-298.78407833,0.00011572,2]
[327131061,1715845877592,-300.56774659,0.00011572,2]
[327131062,1715845877602,-500.0,0.00011572,2]
[327131063,1715845877611,-500.0,0.00011572,2]
[327131064,1715845877620,-158.64178796,0.00011572,2]
[327131065,1715845877630,-234.34665549,0.00011572,2]
[327131066,1715845877640,-157.22038164,0.00011572,2]
[327131067,1715845877649,-155.44741337,0.00011572,2]
[327131068,1715845877659,-5268.69051153,0.00011572,2]
[327131069,1715845877668,-155.0,0.00011572,2]
[327131070,1715845877678,-200.78650338,0.00011572,2]
[327131071,1715845877687,-156.09969513,0.00011572,2]
[327131072,1715845877697,-181.89712596,0.00011572,2]
[327131073,1715845877707,-409.57557879,0.00011572,2]
[327131074,1715845877717,-509.83276196,0.00011572,2]
[327131075,1715845877726,-500.0,0.00011572,2]
[327131076,1715845877736,-500.0,0.00011572,2]
[327131077,1715845877745,-192.86057948,0.00011572,2]
[327131078,1715845877754,-353.34610882,0.00011572,2]
[327131079,1715845877763,-500.0,0.00011572,2]
[327131080,1715845877773,-500.0,0.00011572,2]
[327131081,1715845877782,-538.71200839,0.00011572,2]
[327131082,1715845877791,-500.0,0.00011572,2]
[327131083,1715845877800,-500.0,0.00011572,2]
[327131084,1715845877810,-500.0,0.00011572,2]
[327131085,1715845877819,-500.0,0.00011572,2]
[327131086,1715845877829,-500.0,0.00011572,2]
[327131087,1715845877838,-500.0,0.00011572,2]
[327131088,1715845877848,-500.0,0.00011572,2]
[327131089,1715845877857,-500.0,0.00011572,2]
[327131090,1715845877867,-500.0,0.00011572,2]
[327131091,1715845877876,-500.0,0.00011572,2]
[327131092,1715845877885,-515.63273376,0.00011572,2]
[327131093,1715845877894,-500.0,0.00011572,2]
[327131094,1715845877904,-500.0,0.00011572,2]
[327131095,1715845877913,-500.0,0.00011572,2]
[327131096,1715845877923,-500.0,0.00011572,2]
[327131097,1715845877932,-525.83163832,0.00011572,2]
[327131098,1715845877943,-500.0,0.00011572,2]
[327131099,1715845877955,-500.0,0.00011572,2]
[327131100,1715845877965,-500.0,0.00011572,2]
[327131101,1715845877977,-500.0,0.00011572,2]
[327131102,1715845877987,-500.0,0.00011572,2]
[327131103,1715845877996,-500.0,0.00011572,2]
[327131104,1715845878006,-500.0,0.00011572,2]
[327131105,1715845878016,-500.0,0.00011572,2]
[327131106,1715845878027,-559.34962592,0.00011572,2]
[327131107,1715845878038,-500.0,0.00011572,2]
[327131108,1715845878048,-500.0,0.00011572,2]
[327131109,1715845878059,-507.64271558,0.00011572,2]
[327131110,1715845878069,-375.97226176,0.00011572,2]
[327131111,1715845878078,-500.0,0.00011572,2]
[327131112,1715845878088,-500.0,0.00011572,2]
[327131113,1715845878099,-500.0,0.00011572,2]
[327131114,1715845878109,-500.0,0.00011572,2]
[327131115,1715845878121,-500.0,0.00011572,2]
[327131116,1715845878132,-500.0,0.00011572,2]
[327131117,1715845878142,-500.0,0.00011572,2]
[327131118,1715845878151,-500.0,0.00011572,2]
[327131119,1715845878161,-500.0,0.00011572,2]
[327131120,1715845878171,-500.0,0.00011572,2]
[327131121,1715845878181,-500.0,0.00011572,2]
[327131122,1715845878190,-500.0,0.00011572,2]
[327131123,1715845878363,-500.0,0.00011572,2]
[327131124,1715845878374,-500.0,0.00011572,2]
[327131125,1715845878384,-500.0,0.00011572,2]
[327131126,1715845878393,-500.0,0.00011572,2]
[327131127,1715845878403,-500.0,0.00011572,2]
[327131128,1715845878413,-500.0,0.00011572,2]
[327131129,1715845878425,-500.0,0.00011572,2]
[327131130,1715845878434,-500.0,0.00011572,2]
[327131131,1715845878444,-500.0,0.00011572,2]
[327131132,1715845878454,-500.0,0.00011572,2]
[327131133,1715845878464,-500.0,0.00011572,2]
[327131134,1715845878474,-500.0,0.00011572,2]
[327131135,1715845878483,-500.0,0.00011572,2]
[327131136,1715845878492,-500.0,0.00011572,2]
[327131137,1715845878502,-500.0,0.00011572,2]
[327131138,1715845878512,-500.0,0.00011572,2]
[327131139,1715845878521,-500.0,0.00011572,2]
[327131140,1715845878531,-500.0,0.00011572,2]
[327131141,1715845878541,-500.0,0.00011572,2]
[327131142,1715845878550,-500.0,0.00011572,2]
[327131143,1715845878560,-500.0,0.00011572,2]
[327131144,1715845878570,-500.0,0.00011572,2]
[327131145,1715845878580,-951.32,0.00011572,2]
[327131146,1715845878590,-951.32,0.00011572,2]
[327131147,1715845878599,-500.0,0.00011572,2]
[327131148,1715845878609,-500.0,0.00011572,2]
[327131149,1715845878619,-500.0,0.00011572,2]
[327131150,1715845878629,-512.66,0.00011572,2]
[327131151,1715845878639,-512.66,0.00011572,2]
[327131152,1715845878648,-500.0,0.00011572,2]
[327131153,1715845878658,-500.0,0.00011572,2]
[327131154,1715845878667,-500.0,0.00011572,2]
[327131155,1715845878678,-500.0,0.00011572,2]
[327131156,1715845878687,-500.0,0.00011572,2]
[327131157,1715845878698,-500.0,0.00011572,2]
[327131158,1715845878708,-579.30392808,0.00011572,2]
[327131159,1715845878718,-500.0,0.00011572,2]
[327131160,1715845878727,-500.0,0.00011572,2]